fUSD/lending_fUSD_20240904
["ID","MTS","AMOUNT","RATE_DAILY","PERIOD"]
[337190020,1725493888773,-2047.03,0.00014988,2]
[337190021,1725493888784,-1330.48,0.00014988,2]
[337190022,1725493888794,-500.0,0.00014988,2]
[337190023,1725493888805,-1002.0,0.00014988,2]
[337190024,1725493888815,-500.0,0.00014988,2]
[337190025,1725493888824,-20290.12,0.00014988,2]
[337190026,1725493888834,-500.0,0.00014988,2]
[337190027,1725493888843,-500.0,0.00014988,2]
[337190028,1725493888853,-500.0,0.00014988,2]
[337190029,1725493888863,-1535.5,0.00014988,2]
[337190030,1725493888872,-399.43847364,0.00014988,2]
[337190031,1725493888883,-666.22,0.00014988,2]
[337190032,1725493888892,-834.65,0.00014988,2]
[337190033,1725493888901,-1256.47,0.00014988,2]
[337190034,1725493888911,-151.0,0.00014988,2]
[337190035,1725493888921,-783.4,0.00014988,2]
[337190036,1725493888930,-783.4,0.00014988,2]
[337190037,1725493888940,-783.4,0.00014988,2]
[337190038,1725493888949,-1220.28,0.00014988,2]
[337190039,1725493888959,-500.0,0.00014988,2]
[337190040,1725493888969,-633.94,0.00014988,2]
[337190041,1725493888978,-500.0,0.00014988,2]
[337190042,1725493888988,-506.22,0.00014988,2]
[337190043,1725493888998,-500.0,0.00014988,2]
[337190044,1725493889008,-650.82,0.00014988,2]
[337190045,1725493889019,-1252.29,0.00014988,2]
[337190046,1725493889028,-2265.63,0.00014988,2]
[337190047,1725493889038,-500.0,0.00014988,2]
[337190048,1725493889048,-252.361117,0.00014988,2]
[337190049,1725493889058,-2697.94,0.00014988,2]
[337190050,1725493889067,-602.09,0.00014988,2]
[337190051,1725493889077,-252.361117,0.00014988,2]
[337190052,1725493889086,-500.0,0.00014988,2]
[337190053,1725493889096,-500.0,0.00014988,2]
[337190054,1725493889106,-500.0,0.00014988,2]
[337190055,1725493889115,-500.0,0.00014988,2]
[337190056,1725493889125,-500.0,0.00014988,2]
[337190057,1725493889135,-430.78861013,0.00014988,2]
[337190058,1725493889144,-500.0,0.00014988,2]
[337190059,1725493889154,-500.0,0.00014988,2]
[337190060,1725493889164,-500.0,0.00014988,2]
[337190061,1725493889173,-216.69967715,0.00014988,2]
[337190062,1725493889183,-500.0,0.00014988,2]
[337190063,1725493889193,-500.0,0.00014988,2]
[337190064,1725493889202,-500.0,0.00014988,2]
[337190065,1725493889212,-500.0,0.00014988,2]
[337190066,1725493889221,-2369.51,0.00014988,2]
[337190067,1725493889231,-807.71,0.00014988,2]
[337190068,1725493889240,-659.68,0.00014988,2]
[337190069,1725493889250,-686.45,0.00014988,2]
[337190070,1725493889260,-3799.95,0.00014988,2]
[337190071,1725493889270,-500.0,0.00014988,2]
[337190072,1725493889281,-3799.95,0.00014988,2]
[337190073,1725493889291,-3799.95,0.00014988,2]
[337190074,1725493889301,-1458.37,0.00014988,2]
[337190075,1725493889311,-151.0,0.00014988,2]
[337190076,1725493889322,-500.0,0.00014988,2]
[337190077,1725493889331,-1998.41,0.00014988,2]
[337190078,1725493889340,-1998.41,0.00014988,2]
[337190079,1725493889351,-1998.41,0.00014988,2]
[337190080,1725493889360,-474.80873209,0.00014988,2]
[337190081,1725493889371,-540.29,0.00014988,2]
[337190082,1725493889382,-642.38,0.00014988,2]
[337190083,1725493889392,-540.16480495,0.00014988,2]
[337190084,1725493889403,-4783.4406459,0.00014988,2]
[337190085,1725493889413,-500.0,0.00014988,2]
[337190086,1725493889423,-500.0,0.00014988,2]
[337190087,1725493889433,-530.47,0.00014988,2]
[337190088,1725493889444,-689.45,0.00014988,2]
[337190089,1725493889455,-2338.27,0.00014988,2]
[337190090,1725493889465,-500.0,0.00014988,2]
[337190091,1725493889476,-500.0,0.00014988,2]
[337190092,1725493889487,-620.13,0.00014988,2]
[337190093,1725493889497,-500.0,0.00014988,2]
[337190094,1725493889507,-500.0,0.00014988,2]
[337190095,1725493889517,-500.0,0.00014988,2]
[337190096,1725493889528,-1583.31,0.00014988,2]
[337190097,1725493889539,-716.42,0.00014988,2]
[337190098,1725493889548,-515.05,0.00014988,2]
[337190099,1725493889557,-524.79,0.00014988,2]
[337190100,1725493889569,-500.0,0.00014988,2]
[337190101,1725493889579,-500.0,0.00014988,2]
[337190102,1725493889590,-1034.71,0.00014988,2]
[337190103,1725493889601,-615.56,0.00014988,2]
[337190104,1725493889612,-615.56,0.00014988,2]
[337190105,1725493889624,-500.0,0.00014988,2]
[337190106,1725493889634,-615.56,0.00014988,2]
[337190107,1725493889644,-677.9,0.00014988,2]
[337190108,1725493889655,-11296.32,0.00014988,2]
[337190109,1725493889666,-639.64,0.00014988,2]
[337190110,1725493889675,-500.0,0.00014988,2]
[337190111,1725493889686,-500.0,0.00014988,2]
[337190112,1725493889697,-500.0,0.00014988,2]
[337190113,1725493889707,-1139.67,0.00014988,2]
[337190114,1725493889718,-500.0,0.00014988,2]
[337190115,1725493889729,-1314.4,0.00014988,2]
[337190116,1725493889739,-2582.17,0.00014988,2]
[337190117,1725493889749,-500.0,0.00014988,2]
[337190118,1725493889759,-505.71499094,0.00014989,2]
[337190119,1725493889770,-520.88,0.00014989,2]
[337190120,1725493889780,-500.0,0.00014989,2]
[337190121,1725493889791,-596.73,0.00014989,2]
[337190122,1725493889801,-500.0,0.00014989,2]
[337190123,1725493889811,-500.0,0.00014989,2]
[337190124,1725493889821,-500.0,0.00014989,2]
[337190125,1725493889831,-500.0,0.00014989,2]
[337190126,1725493890106,-565.06,0.00014989,2]
[337190127,1725493890117,-500.0,0.00014989,2]
[337190128,1725493890127,-500.0,0.00014989,2]
[337190129,1725493890136,-500.0,0.00014989,2]
[337190130,1725493890146,-500.0,0.00014989,2]
[337190131,1725493890156,-500.0,0.00014989,2]
[337190132,1725493890166,-500.0,0.00014989,2]
[337190133,1725493890175,-500.0,0.00014989,2]
[337190134,1725493890185,-500.0,0.00014989,2]
[337190135,1725493890195,-756.98,0.00014989,2]
[337190136,1725493890205,-859.41,0.00014989,2]
[337190137,1725493890214,-500.0,0.00014989,2]
[337190138,1725493890224,-500.0,0.00014989,2]
[337190139,1725493890234,-672.84,0.00014989,2]
[337190140,1725493890243,-672.36,0.00014989,2]
[337190141,1725493890253,-500.0,0.00014989,2]
[337190142,1725493890263,-500.0,0.00014989,2]
[337190143,1725493890272,-500.0,0.00014989,2]
[337190144,1725493890282,-500.0,0.00014989,2]
[337190145,1725493890291,-500.0,0.00014989,2]
[337190146,1725493890300,-532.35677351,0.00014989,2]
[337190147,1725493890310,-577.56,0.00014989,2]
[337190148,1725493890320,-500.0,0.00014989,2]
[337190149,1725493890329,-500.0,0.00014989,2]
[337190150,1725493890339,-500.0,0.00014989,2]
[337190151,1725493890348,-736.16,0.00014989,2]
[337190152,1725493890359,-500.0,0.00014989,2]
[337190153,1725493890370,-704.87,0.00014989,2]
[337190154,1725493890380,-500.0,0.00014989,2]
[337190155,1725493890389,-151.0,0.00014989,2]
[337190156,1725493890399,-599.96,0.00014989,2]
[337190157,1725493890409,-1250.71,0.00014989,2]
[337190158,1725493890419,-500.0,0.00014989,2]
[337190159,1725493890428,-500.0,0.00014989,2]
[337190160,1725493890438,-500.0,0.00014989,2]
[337190161,1725493890447,-500.0,0.00014989,2]
[337190162,1725493890457,-754.43,0.00014989,2]
[337190163,1725493890467,-848.94,0.00014989,2]
[337190164,1725493890476,-506.8,0.00014989,2]
[337190165,1725493890486,-500.0,0.00014989,2]
[337190166,1725493890496,-500.0,0.00014989,2]
[337190167,1725493890505,-984.38,0.00014989,2]
[337190168,1725493890515,-500.0,0.00014989,2]
[337190169,1725493890524,-500.0,0.00014989,2]
[337190170,1725493890534,-560.02082571,0.00014989,2]
[337190171,1725493890545,-652.57,0.00014989,2]
[337190172,1725493890555,-1063.27,0.00014989,2]
[337190173,1725493890564,-500.0,0.00014989,2]
[337190174,1725493890573,-500.0,0.00014989,2]
[337190175,1725493890583,-500.0,0.00014989,2]
[337190176,1725493890592,-500.0,0.00014989,2]
[337190177,1725493890602,-500.0,0.00014989,2]
[337190178,1725493890612,-1057.81,0.00014989,2]
[337190179,1725493890624,-721.55,0.00014989,2]
[337190180,1725493890634,-846.69,0.00014989,2]
[337190181,1725493890643,-2200.02,0.00014989,2]
[337190182,1725493890653,-500.0,0.00014989,2]
[337190183,1725493890663,-500.0,0.00014989,2]
[337190184,1725493890672,-637.24,0.00014989,2]
[337190185,1725493890682,-873.13,0.00014989,2]
[337190186,1725493890691,-398.82422374,0.00014989,2]
[337190187,1725493890702,-635.06029819,0.00014989,2]
[337190188,1725493890711,-823.25,0.00014989,2]
[337190189,1725493890721,-968.13,0.00014989,2]
[337190190,1725493890731,-500.0,0.00014989,2]
[337190191,1725493890742,-633.32,0.00014989,2]
[337190192,1725493890751,-1025.34,0.00014989,2]
[337190193,1725493890761,-836.5,0.00014989,2]
[337190194,1725493890771,-597.69,0.00014989,2]
[337190195,1725493890780,-1035.95,0.00014989,2]
[337190196,1725493890791,-1035.95,0.00014989,2]
[337190197,1725493890802,-1035.95,0.00014989,2]
[337190198,1725493890811,-500.0,0.00014989,2]
[337190199,1725493890821,-525.69197988,0.00014989,2]
[337190200,1725493890830,-500.0,0.00014989,2]
[337190201,1725493890840,-1364.43,0.00014989,2]
[337190202,1725493890850,-500.0,0.00014989,2]
[337190203,1725493890860,-1057.84,0.00014989,2]
[337190204,1725493890869,-620.36,0.00014989,2]
[337190205,1725493890879,-951.83,0.00014989,2]
[337190206,1725493890890,-1050.43,0.00014989,2]
[337190207,1725493890899,-500.0,0.00014989,2]
[337190208,1725493890908,-500.0,0.00014989,2]
[337190209,1725493890918,-481.05759465,0.00014989,2]
[337190210,1725493890928,-500.0,0.00014989,2]
[337190211,1725493890937,-500.0,0.00014989,2]
[337190212,1725493890947,-457.57328323,0.00014989,2]
[337190213,1725493890956,-655.43,0.00014989,2]
[337190214,1725493890966,-500.0,0.00014989,2]
[337190215,1725493890975,-500.0,0.00014989,2]
[337190216,1725493890985,-524.69,0.00014989,2]
[337190217,1725493890994,-997.8,0.00014989,2]
[337190218,1725493891003,-582.73,0.00014989,2]
[337190219,1725493891012,-500.0,0.00014989,2]
[337190220,1725493891022,-500.0,0.00014989,2]
[337190221,1725493891031,-500.0,0.00014989,2]
[337190222,1725493891041,-400.0,0.00014989,2]
[337190223,1725493891050,-500.0,0.00014989,2]
[337190224,1725493891060,-500.0,0.00014989,2]
[337190225,1725493891069,-500.0,0.00014989,2]
[337190226,1725493891078,-500.0,0.00014989,2]
[337190227,1725493891088,-500.0,0.00014989,2]
[337190228,1725493891098,-500.0,0.00014989,2]
[337190229,1725493891107,-500.0,0.00014989,2]
[337190230,1725493891117,-500.0,0.00014989,2]
[337190231,1725493891126,-1431.62,0.00014989,2]
[337190232,1725493891137,-500.0,0.00014989,2]
[337190233,1725493891146,-500.0,0.00014989,2]
[337190234,1725493891156,-500.0,0.00014989,2]
[337190235,1725493891167,-151.0,0.00014989,2]
[337190236,1725493891176,-431.55461016,0.00014989,2]
[337190237,1725493891185,-2303.47,0.00014989,2]
[337190238,1725493891195,-500.0,0.00014989,2]
[337190239,1725493891204,-500.0,0.00014989,2]
[337190240,1725493891214,-500.0,0.00014989,2]
[337190241,1725493891223,-500.0,0.00014989,2]
[337190242,1725493891233,-212.25,0.00014989,2]
[337190243,1725493891243,-734.72,0.00014989,2]
[337190244,1725493891252,-1232.06,0.00014989,2]
[337190245,1725493891262,-500.0,0.00014989,2]
[337190246,1725493891271,-1274.8,0.00014989,2]
[337190247,1725493891282,-753.65,0.00014989,2]
[337190248,1725493891293,-753.65,0.00014989,2]
[337190249,1725493891303,-2000.11,0.00014989,2]
[337190250,1725493891312,-745.39,0.00014989,2]
[337190251,1725493891323,-1382.23,0.00014989,2]
[337190252,1725493891332,-500.0,0.00014989,2]
[337190253,1725493891342,-649.0,0.00014989,2]
[337190254,1725493891352,-543.54,0.00014989,2]
[337190255,1725493891361,-543.54,0.00014989,2]
[337190256,1725493891370,-543.54,0.00014989,2]
[337190257,1725493891380,-500.0,0.00014989,2]
[337190258,1725493891389,-1259.26,0.00014989,2]
[337190259,1725493891398,-1144.81,0.00014989,2]
[337190260,1725493891408,-1144.81,0.00014989,2]
[337190261,1725493891419,-1144.81,0.00014989,2]
[337190262,1725493891430,-500.0,0.00014989,2]
[337190263,1725493891440,-500.0,0.00014989,2]
[337190264,1725493891451,-500.0,0.00014989,2]
[337190265,1725493891461,-500.0,0.00014989,2]
[337190266,1725493891472,-1348.62,0.00014989,2]
[337190267,1725493891483,-500.0,0.00014989,2]
[337190268,1725493891493,-253.43972278,0.00014989,2]
[337190269,1725493891503,-1908.82,0.00014989,2]
[337190270,1725493891514,-563.78829848,0.00014989,2]
[337190271,1725493891525,-500.0,0.00014989,2]
[337190272,1725493891535,-500.0,0.00014989,2]
[337190273,1725493891547,-500.0,0.00014989,2]
[337190274,1725493891556,-500.0,0.00014989,2]
[337190275,1725493891565,-500.0,0.00014989,2]
[337190276,1725493891575,-577.76,0.00014989,2]
[337190277,1725493891584,-500.0,0.00014989,2]
[337190278,1725493891594,-500.0,0.00014989,2]
[337190279,1725493891605,-500.0,0.00014989,2]
[337190280,1725493891616,-500.0,0.00014989,2]
[337190281,1725493891627,-500.0,0.00014989,2]
[337190282,1725493891636,-500.0,0.00014989,2]
[337190283,1725493891645,-500.0,0.00014989,2]
[337190284,1725493891657,-500.0,0.00014989,2]
[337190285,1725493891668,-500.0,0.00014989,2]
[337190286,1725493891679,-500.0,0.00014989,2]
[337190287,1725493891689,-500.0,0.00014989,2]
[337190288,1725493891701,-500.0,0.00014989,2]
[337190289,1725493891712,-985.67,0.00014989,2]
[337190290,1725493891722,-500.0,0.00014989,2]
[337190291,1725493891731,-348.51295192,0.00014989,2]
[337190292,1725493891742,-500.0,0.00014989,2]
[337190293,1725493891751,-1872.29,0.00014989,2]
[337190294,1725493891761,-500.0,0.00014989,2]
[337190295,1725493891771,-2005.08,0.00014989,2]
[337190296,1725493891781,-500.0,0.00014989,2]
[337190297,1725493891792,-500.0,0.00014989,2]
[337190298,1725493891801,-739.97,0.00014989,2]
[337190299,1725493891812,-500.0,0.00014989,2]
[337190300,1725493891821,-500.0,0.00014989,2]
[337190301,1725493891832,-500.0,0.00014989,2]
[337190302,1725493891843,-841.42,0.00014989,2]
[337190303,1725493891854,-500.0,0.00014989,2]
[337190304,1725493891864,-500.0,0.00014989,2]
[337190305,1725493891874,-500.0,0.00014989,2]
[337190306,1725493891883,-500.0,0.00014989,2]
[337190307,1725493891893,-500.0,0.00014989,2]
[337190308,1725493891903,-522.65481096,0.00014989,2]
[337190309,1725493891912,-500.0,0.00014989,2]
[337190310,1725493891921,-500.0,0.00014989,2]
[337190311,1725493891930,-500.0,0.00014989,2]
[337190312,1725493891940,-501.08,0.00014989,2]
[337190313,1725493891949,-909.1,0.00014989,2]
[337190314,1725493891960,-2411.42,0.00014989,2]
[337190315,1725493891971,-500.0,0.00014989,2]
[337190316,1725493891980,-508.6,0.00014989,2]
[337190317,1725493891991,-317.67393973,0.00014989,2]
[337190318,1725493892001,-500.0,0.00014989,2]
[337190319,1725493892010,-500.0,0.00014989,2]
[337190320,1725493892019,-861.8,0.00014989,2]
[337190321,1725493892029,-500.0,0.00014989,2]
[337190322,1725493892039,-500.0,0.00014989,2]
[337190323,1725493892054,-500.0,0.00014989,2]
[337190324,1725493892063,-500.0,0.00014989,2]
[337190325,1725493892072,-500.0,0.00014989,2]
[337190326,1725493892081,-508.98,0.00014989,2]
[337190327,1725493892091,-454.06424892,0.00014989,2]
[337190328,1725493892100,-508.98,0.00014989,2]
[337190329,1725493892109,-508.98,0.00014989,2]
[337190330,1725493892119,-508.98,0.00014989,2]
[337190331,1725493892128,-508.98,0.00014989,2]
[337190332,1725493892137,-508.98,0.00014989,2]
[337190333,1725493892146,-542.68,0.00014989,2]
[337190334,1725493892156,-2624.2,0.00014989,2]
[337190335,1725493892165,-507.04,0.00014989,2]
[337190336,1725493892174,-858.44,0.00014989,2]
[337190337,1725493892184,-601.16,0.00014989,2]
[337190338,1725493892194,-500.0,0.00014989,2]
[337190339,1725493892203,-739.0,0.00014989,2]
[337190340,1725493892213,-500.0,0.00014989,2]
[337190341,1725493892223,-500.0,0.00014989,2]
[337190342,1725493892232,-500.0,0.00014989,2]
[337190343,1725493892247,-1053.32,0.00014989,2]
[337190344,1725493892262,-1053.32,0.00014989,2]
[337190345,1725493892272,-1053.32,0.00014989,2]
[337190346,1725493892282,-1053.32,0.00014989,2]
[337190347,1725493892293,-1053.32,0.00014989,2]
[337190348,1725493892303,-1053.32,0.00014989,2]
[337190349,1725493892312,-681.03,0.00014989,2]
[337190350,1725493892322,-979.84,0.00014989,2]
[337190351,1725493892332,-748.31,0.00014989,2]
[337190352,1725493892342,-748.31,0.00014989,2]
[337190353,1725493892353,-748.31,0.00014989,2]
[337190354,1725493892364,-500.0,0.00014989,2]
[337190355,1725493892374,-748.31,0.00014989,2]
[337190356,1725493892383,-500.0,0.00014989,2]
[337190357,1725493892395,-748.31,0.00014989,2]
[337190358,1725493892406,-500.0,0.00014989,2]
[337190359,1725493892416,-748.31,0.00014989,2]
[337190360,1725493892426,-500.0,0.00014989,2]
[337190361,1725493892436,-585.0,0.00014989,2]
[337190362,1725493892567,-500.0,0.00014989,2]
[337190363,1725493892576,-611.11538534,0.00014989,2]
[337190364,1725493892586,-532.05,0.00014989,2]
[337190365,1725493892595,-532.05,0.00014989,2]
[337190366,1725493892604,-532.05,0.00014989,2]
[337190367,1725493892614,-532.05,0.00014989,2]
[337190368,1725493892625,-532.05,0.00014989,2]
[337190369,1725493892634,-532.05,0.00014989,2]
[337190370,1725493892643,-679.89,0.00014989,2]
[337190371,1725493892652,-679.89,0.00014989,2]
[337190372,1725493892661,-679.89,0.00014989,2]
[337190373,1725493892670,-679.89,0.00014989,2]
[337190374,1725493892679,-990.0,0.00014989,2]
[337190375,1725493892689,-679.89,0.00014989,2]
[337190376,1725493892699,-990.0,0.00014989,2]
[337190377,1725493892709,-679.89,0.00014989,2]
[337190378,1725493892718,-500.0,0.00014989,2]
[337190379,1725493892728,-500.0,0.00014989,2]
[337190380,1725493892737,-500.0,0.00014989,2]
[337190381,1725493892748,-500.0,0.00014989,2]
[337190382,1725493892760,-500.0,0.00014989,2]
[337190383,1725493892771,-500.0,0.00014989,2]
[337190384,1725493892783,-500.0,0.00014989,2]
[337190385,1725493892793,-500.0,0.00014989,2]
[337190386,1725493892802,-500.0,0.00014989,2]
[337190387,1725493892812,-500.0,0.00014989,2]
[337190388,1725493892822,-500.0,0.00014989,2]
[337190389,1725493892833,-500.0,0.00014989,2]
[337190390,1725493892843,-500.0,0.00014989,2]
[337190391,1725493892864,-500.0,0.00014989,2]
[337190392,1725493892874,-500.0,0.00014989,2]
[337190393,1725493892885,-500.0,0.00014989,2]
[337190394,1725493892894,-500.0,0.00014989,2]
[337190395,1725493892905,-641.84617171,0.00014989,2]
[337190396,1725493892916,-500.0,0.00014989,2]
[337190397,1725493892926,-500.0,0.00014989,2]
[337190398,1725493892936,-500.0,0.00014989,2]
[337190399,1725493892946,-500.0,0.00014989,2]
[337190400,1725493892957,-500.0,0.00014989,2]
[337190401,1725493892966,-500.0,0.00014989,2]
[337190402,1725493892975,-500.0,0.00014989,2]
[337190403,1725493892985,-555.2647881,0.00014989,2]
[337190404,1725493892994,-500.0,0.00014989,2]
[337190405,1725493893004,-500.0,0.00014989,2]
[337190406,1725493893013,-500.0,0.00014989,2]
[337190407,1725493893022,-486.63429186,0.00014989,2]
[337190408,1725493893031,-500.0,0.00014989,2]
[337190409,1725493893041,-500.0,0.00014989,2]
[337190410,1725493893050,-515.18,0.00014989,2]
[337190411,1725493893060,-500.0,0.00014989,2]
[337190412,1725493893070,-500.0,0.00014989,2]
[337190413,1725493893079,-500.0,0.00014989,2]
[337190414,1725493893089,-500.0,0.00014989,2]
[337190415,1725493893099,-500.0,0.00014989,2]
[337190416,1725493893108,-500.0,0.00014989,2]
[337190417,1725493893118,-500.0,0.00014989,2]
[337190418,1725493893127,-792.28,0.00014989,2]
[337190419,1725493893136,-702.07,0.00014989,2]
[337190420,1725493893146,-702.07,0.00014989,2]
[337190421,1725493893156,-500.0,0.00014989,2]
[337190422,1725493893166,-500.0,0.00014989,2]
[337190423,1725493893177,-771.18,0.00014989,2]
[337190424,1725493893186,-500.0,0.00014989,2]
[337190425,1725493893196,-500.51001782,0.00014989,2]
[337190426,1725493893206,-500.0,0.00014989,2]
[337190427,1725493893216,-585.72,0.00014989,2]
[337190428,1725493893226,-585.72,0.00014989,2]
[337190429,1725493893235,-500.0,0.00014989,2]
[337190430,1725493893245,-585.72,0.00014989,2]
[337190431,1725493893254,-500.0,0.00014989,2]
[337190432,1725493893264,-585.72,0.00014989,2]
[337190433,1725493893274,-500.0,0.00014989,2]
[337190434,1725493893284,-585.72,0.00014989,2]
[337190435,1725493893293,-585.72,0.00014989,2]
[337190436,1725493893302,-635.46,0.00014989,2]
[337190437,1725493893311,-786.07,0.00014989,2]
[337190438,1725493893320,-635.46,0.00014989,2]
[337190439,1725493893330,-635.46,0.00014989,2]
[337190440,1725493893339,-786.07,0.00014989,2]
[337190441,1725493893348,-635.46,0.00014989,2]
[337190442,1725493893358,-786.07,0.00014989,2]
[337190443,1725493893367,-635.46,0.00014989,2]
[337190444,1725493893376,-635.46,0.00014989,2]
[337190445,1725493893386,-500.0,0.00014989,2]
[337190446,1725493893395,-500.0,0.00014989,2]
[337190447,1725493893405,-500.0,0.00014989,2]
[337190448,1725493893414,-570.83,0.00014989,2]
[337190449,1725493893423,-500.0,0.00014989,2]
[337190450,1725493893432,-570.83,0.00014989,2]
[337190451,1725493893443,-500.0,0.00014989,2]
[337190452,1725493893452,-500.0,0.00014989,2]
[337190453,1725493893461,-994.84,0.00014989,2]
[337190454,1725493893470,-500.0,0.00014989,2]
[337190455,1725493893480,-654.76,0.00014989,2]
[337190456,1725493893490,-654.76,0.00014989,2]
[337190457,1725493893499,-654.76,0.00014989,2]
[337190458,1725493893508,-654.76,0.00014989,2]
[337190459,1725493893517,-654.76,0.00014989,2]
[337190460,1725493893527,-654.76,0.00014989,2]
[337190461,1725493893536,-500.0,0.00014989,2]
[337190462,1725493893546,-500.0,0.00014989,2]
[337190463,1725493893555,-500.0,0.00014989,2]
[337190464,1725493893565,-500.0,0.00014989,2]
[337190465,1725493893574,-500.0,0.00014989,2]
[337190466,1725493893583,-500.0,0.00014989,2]
[337190467,1725493893593,-500.0,0.00014989,2]
[337190468,1725493893603,-500.0,0.00014989,2]
[337190469,1725493893612,-356.54893519,0.00014989,2]
[337190470,1725493893625,-506.93119678,0.00014989,2]
[337190471,1725493893634,-279.96927302,0.00014989,2]
[337190472,1725493893644,-500.0,0.00014989,2]
[337190473,1725493893653,-500.0,0.00014989,2]
[337190474,1725493893664,-500.0,0.00014989,2]
[337190475,1725493893674,-500.0,0.00014989,2]
[337190476,1725493893683,-401.0929868,0.00014989,2]
[337190477,1725493893694,-500.0,0.00014989,2]
[337190478,1725493893704,-737.66,0.00014989,2]
[337190479,1725493893713,-737.66,0.00014989,2]
[337190480,1725493893723,-737.66,0.00014989,2]
[337190481,1725493893732,-626.03,0.00014989,2]
[337190482,1725493893742,-626.03,0.00014989,2]
[337190483,1725493893751,-626.03,0.00014989,2]
[337190484,1725493893761,-626.03,0.00014989,2]
[337190485,1725493893770,-626.03,0.00014989,2]
[337190486,1725493893779,-626.03,0.00014989,2]
[337190487,1725493893788,-500.0,0.00014989,2]
[337190488,1725493893798,-500.0,0.00014989,2]
[337190489,1725493893807,-1132.6,0.00014989,2]
[337190490,1725493893816,-1132.6,0.00014989,2]
[337190491,1725493893826,-1132.6,0.00014989,2]
[337190492,1725493893835,-1132.6,0.00014989,2]
[337190493,1725493893844,-1132.6,0.00014989,2]
[337190494,1725493893854,-1132.6,0.00014989,2]
[337190495,1725493893863,-500.0,0.00014989,2]
[337190496,1725493893871,-500.0,0.00014989,2]
[337190497,1725493893880,-500.0,0.00014989,2]
[337190498,1725493893890,-500.0,0.00014989,2]
[337190499,1725493893899,-500.0,0.00014989,2]
[337190500,1725493893908,-669.68,0.00014989,2]
[337190501,1725493893917,-669.68,0.00014989,2]
[337190502,1725493893927,-669.68,0.00014989,2]
[337190503,1725493893936,-669.68,0.00014989,2]
[337190504,1725493893945,-669.68,0.00014989,2]
[337190505,1725493893955,-669.68,0.00014989,2]
[337190506,1725493893964,-501.55,0.00014989,2]
[337190507,1725493893973,-1023.45,0.00014989,2]
[337190508,1725493893982,-1023.45,0.00014989,2]
[337190509,1725493893991,-1023.45,0.00014989,2]
[337190510,1725493894000,-1285.15,0.00014989,2]
[337190511,1725493894011,-1285.15,0.00014989,2]
[337190512,1725493894020,-1285.15,0.00014989,2]
[337190513,1725493894029,-1412.76,0.00014989,2]
[337190514,1725493894038,-1412.76,0.00014989,2]
[337190515,1725493894048,-1412.76,0.00014989,2]
[337190516,1725493894057,-1412.76,0.00014989,2]
[337190517,1725493894067,-1412.76,0.00014989,2]
[337190518,1725493894076,-1412.76,0.00014989,2]
[337190519,1725493894085,-787.1,0.00014989,2]